bitfinex/quotes_ETHUSD_20250616
["timestamp","ask_amount","ask_price","bid_price","bid_amount"]
[1750100352234,0.7727,2656.6,2656.2,3.76470355]
[1750100352429,2.45117102,2656.6,2656.3,6.309]
[1750100352933,0.7727,2656.6,2656.5,3.76435159]
[1750100353185,0.15765627,2656.7,2656.6,3.76420989]
[1750100353399,0.15765627,2656.7,2656.6,10.07020989]
[1750100354037,0.15765627,2656.7,2656.5,3.76430046]
[1750100354238,0.15765627,2656.7,2656.4,3.76442096]
[1750100354594,0.15765627,2656.7,2656.5,6.304]
[1750100354789,0.15765627,2656.7,2655.9,3.76508758]
[1750100354790,0.8171,2656.6,2655.8,1.64]
[1750100354953,10.74481181,2656.5,2656.1,3.76484711]
[1750100355284,10.74481181,2656.5,2656.2,10.07670074]
[1750100355471,10.74481181,2656.5,2656.2,6.312]
[1750100356076,10.74481181,2656.5,2656.2,10.07676114]
[1750100356570,0.8171,2656.6,2656.4,3.76439893]
[1750100356776,0.8171,2656.6,2656.3,10.07456556]
[1750100356970,0.8171,2656.6,2656.3,6.31]
[1750100357439,0.15765627,2656.7,2656.6,3.76420989]
[1750100357638,0.15765627,2656.7,2656.6,10.11484955]
[1750100357970,0.15765627,2656.7,2656.6,10.07720989]
[1750100358364,0.15765627,2656.7,2656.6,11.71720989]
[1750100360474,0.15765627,2656.7,2656.6,5.40420989]
[1750100360778,0.15765627,2656.7,2656.6,11.71520989]
[1750100360975,0.15765627,2656.7,2656.6,10.07520989]
[1750100361285,10.90246808,2656.7,2656.4,1.64]
[1750100361578,10.90246808,2656.7,2656.5,10.07433227]
[1750100361940,10.90246808,2656.7,2656.5,6.31]
[1750100362179,10.90246808,2656.7,2656.6,6.312]
[1750100362853,10.90246808,2656.7,2656.3,3.76462051]
[1750100363049,10.90246808,2656.7,2656.5,3.76434445]
[1750100363266,10.90246808,2656.7,2656.6,6.308]
[1750100364079,0.8065,2656.6,2656.3,1.64]
[1750100364289,10.74481181,2656.4,2656.3,1.64]
[1750100364448,10.74481181,2656.4,2656.3,7.946]
[1750100364783,10.74481181,2656.4,2656.3,6.307]
[1750100364986,10.74481181,2656.4,2656.2,3.76477361]
[1750100365288,10.74481181,2656.4,2656.3,6.307]
[1750100365656,10.74481181,2656.4,2656.0,5.40502185]
[1750100365862,10.74481181,2656.4,2656.1,10.07091254]
[1750100366057,10.74481181,2656.4,2656.2,3.76477493]
[1750100366472,0.8065,2656.6,2656.2,3.76477493]
[1750100366680,11.55131181,2656.6,2656.2,3.76477493]
[1750100367305,11.55131181,2656.6,2656.3,6.302]
[1750100368200,15.95500029,2656.6,2656.1,3.76485526]
[1750100368406,10.74481181,2656.3,2656.2,6.299]
[1750100368563,10.74481181,2656.3,2655.9,1.64]
[1750100368898,10.74481181,2656.3,2656.0,6.299]
[1750100369105,10.74481181,2656.3,2656.1,6.298]
[1750100369308,10.74481181,2656.3,2655.8,3.76532966]
[1750100369517,10.74481181,2656.3,2655.9,10.06311028]
[1750100369669,10.74481181,2656.3,2655.9,3.76511028]
[1750100369874,10.74481181,2656.3,2656.0,10.0609988]
[1750100370276,0.7661,2656.2,2655.9,3.76514018]
[1750100370607,0.7661,2656.5,2656.1,6.295]
[1750100370768,0.7661,2656.5,2656.3,3.76452392]
[1750100371589,0.7661,2656.5,2656.2,10.06164364]
[1750100371814,0.7661,2656.5,2656.2,6.297]
[1750100371815,10.74481181,2656.4,2656.2,6.297]
[1750100372169,10.74481181,2656.4,2656.2,10.06169305]
[1750100373170,10.74481181,2656.4,2656.2,6.297]
[1750100373371,11.79455023,2656.4,2656.1,3.76487263]
[1750100373594,11.79455023,2656.4,2656.2,6.297]
[1750100374069,12.41215859,2656.5,2656.2,6.297]
[1750100374305,11.51091181,2656.5,2656.2,6.297]
[1750100374507,11.51091181,2656.5,2656.2,10.06170065]
[1750100375006,12.41215859,2656.5,2656.2,6.297]
[1750100376133,11.51091181,2656.5,2656.2,6.297]
[1750100376431,15.27534537,2656.5,2656.2,6.297]
[1750100376589,12.41241975,2656.5,2656.2,6.297]
[1750100377026,12.41245785,2656.5,2656.2,6.297]
[1750100377426,12.41245785,2656.5,2656.2,10.06177385]
[1750100377632,11.51091181,2656.5,2656.2,6.297]
[1750100377793,11.51091181,2656.5,2656.2,10.06171598]
[1750100377995,0.7661,2656.5,2656.2,10.06171598]
[1750100378193,11.51091181,2656.5,2656.2,6.297]
[1750100378529,11.51091181,2656.5,2656.2,10.0617176]
[1750100378966,11.51091181,2656.5,2656.3,3.76462651]
[1750100379160,0.7661,2656.5,2656.4,3.76449329]
[1750100379638,0.7661,2656.5,2656.3,6.283]
[1750100380198,10.74481181,2656.4,2656.3,6.282]
[1750100382030,10.74481181,2656.4,2656.3,10.04663501]
[1750100382237,10.74481181,2656.4,2656.3,6.282]
[1750100382740,11.51091181,2656.5,2656.3,6.282]
[1750100383098,11.41091181,2656.5,2656.3,6.282]
[1750100383398,0.15765627,2656.7,2656.4,3.76442842]
[1750100384332,0.15765627,2656.7,2656.5,3.76432565]
[1750100384897,0.15765627,2656.7,2656.6,3.76420989]
[1750100385128,0.15765627,2656.7,2656.4,3.76442968]
[1750100385360,0.15765627,2656.7,2656.6,3.76420989]
[1750100386018,0.15765627,2656.7,2656.3,6.282]
[1750100386452,0.15765627,2656.7,2656.5,3.76429001]
[1750100389230,10.74481181,2656.6,2656.3,3.76457788]
[1750100389437,0.8319,2656.5,2656.4,6.264]
[1750100389960,10.74481181,2656.6,2656.4,6.264]
[1750100390145,10.74481181,2656.6,2656.4,10.02848912]
[1750100391564,0.15765627,2656.7,2656.6,3.76420989]
[1750100395463,0.15765627,2656.7,2656.6,4.55670989]
[1750100396565,0.15765627,2656.7,2656.6,4.59434672]
[1750100397663,0.15765627,2656.7,2656.6,10.85234672]
[1750100397846,0.15765627,2656.7,2656.6,10.81470989]
[1750100399065,0.15765627,2656.7,2656.5,3.76434675]
[1750100399228,0.15765627,2656.7,2656.6,10.02020989]
[1750100400127,0.15765627,2656.7,2656.5,3.7642847]
[1750100400329,5.79958974,2656.7,2656.3,3.76463501]
[1750100400567,10.74481181,2656.5,2655.9,5.443202]
[1750100400738,0.94325627,2656.7,2656.4,3.76449329]
[1750100400937,0.94325627,2656.7,2656.4,10.01949329]
[1750100401173,0.94325627,2656.7,2656.4,10.01943722]
[1750100401395,0.15765627,2656.7,2656.6,3.76420989]
[1750100401737,10.90246808,2656.7,2656.6,3.76420989]
[1750100401930,10.90246808,2656.7,2656.1,0.8277]
[1750100402151,10.90246808,2656.7,2656.3,3.76463501]
[1750100402152,10.74481181,2656.4,2656.3,3.76463501]
[1750100402531,0.15765627,2656.7,2656.6,3.76420989]
[1750100402730,0.15765627,2656.7,2656.6,10.02520989]
[1750100403439,10.90246808,2656.7,2656.4,1.661]
[1750100403642,11.65976808,2656.7,2656.5,10.0262748]
[1750100403858,11.65976808,2656.7,2656.6,6.263]
[1750100404170,3.76431913,2656.6,2656.1,3.76482564]
[1750100404342,10.74481181,2656.4,2656.1,10.02782564]
[1750100404530,10.74481181,2656.4,2656.0,3.76501887]
[1750100404731,10.74481181,2656.1,2655.7,1.66]
[1750100404931,10.74481181,2655.8,2655.7,5.42539647]
[1750100405161,10.74481181,2655.8,2655.7,11.69239647]
[1750100405378,3.7649324,2656.1,2655.7,6.268]
[1750100405668,10.74481181,2655.9,2655.6,3.76555069]
[1750100405870,10.74481181,2655.9,2655.7,10.03247475]
[1750100406087,0.90190503,2656.3,2655.7,6.267]
[1750100406400,10.74481181,2656.5,2656.0,3.76496469]
[1750100406401,0.7917,2656.4,2656.0,3.76496469]
[1750100406532,3.41197853,2656.4,2656.1,6.27]
[1750100406741,10.74481181,2656.2,2655.9,3.76519991]
[1750100406937,10.74481181,2656.2,2656.1,6.27]
[1750100407381,10.74481181,2656.2,2656.0,6.27]
[1750100407543,10.74481181,2656.2,2655.9,3.76519991]
[1750100407740,10.74481181,2656.2,2655.7,3.76541837]
[1750100407741,14.50969298,2656.2,2655.7,3.76541837]
[1750100407979,14.50969298,2656.2,2655.8,6.269]
[1750100407980,10.74481181,2655.9,2655.8,6.269]
[1750100408180,10.74481181,2655.9,2655.8,10.03434377]
[1750100409384,10.74481181,2655.9,2655.8,6.269]
[1750100409580,10.74481181,2655.9,2655.8,10.03434377]
[1750100409883,0.90190503,2656.3,2655.8,10.8614997]
[1750100410183,10.74481181,2656.4,2656.0,3.76503754]
[1750100410362,13.27407545,2656.4,2656.1,10.02990122]
[1750100410556,10.74481181,2656.4,2656.2,3.76475331]
[1750100410874,10.74481181,2656.4,2656.2,3.76470321]
[1750100411070,3.76485939,2656.2,2655.4,4.52869043]
[1750100411275,10.74481181,2655.6,2655.5,10.03265752]
[1750100411457,10.74481181,2656.2,2655.8,3.7652099]
[1750100411782,10.74481181,2655.9,2655.8,6.275]
[1750100412946,10.74481181,2655.9,2655.6,3.76556218]
[1750100413176,10.74481181,2655.9,2655.7,6.275]
[1750100413448,10.74481181,2655.9,2655.3,3.7660106]
[1750100413449,4.53057324,2655.8,2655.3,3.7660106]
[1750100413778,0.7565,2655.5,2655.1,5.42724875]
[1750100413973,0.7565,2655.5,2655.2,6.275]
[1750100414178,10.74481181,2655.7,2655.3,3.76596045]
[1750100414682,10.74481181,2655.7,2655.4,3.76590247]
[1750100415565,10.74481181,2655.7,2655.3,3.76602107]
[1750100416294,10.74481181,2655.7,2655.1,3.76620716]
[1750100416295,10.74481181,2655.4,2655.1,3.76620716]
[1750100416449,0.7965,2655.3,2655.2,6.272]
[1750100416654,0.7965,2655.5,2655.2,10.03819463]
[1750100416995,0.7965,2655.5,2655.2,6.272]
[1750100417487,0.7965,2655.5,2655.1,3.76627471]
[1750100417647,0.7965,2655.5,2655.2,6.272]
[1750100418375,0.7965,2655.5,2655.2,3.76619407]
[1750100418580,0.7965,2655.5,2655.2,10.03719407]
[1750100418786,0.7965,2655.5,2655.2,6.271]
[1750100419555,10.74481181,2655.3,2655.2,6.271]
[1750100419853,10.74481181,2655.3,2654.9,3.76655181]
[1750100420048,10.74481181,2655.0,2654.8,3.76667878]
[1750100420273,10.74481181,2655.0,2654.8,10.03268705]
[1750100420473,10.74481181,2655.0,2654.9,3.76662021]
[1750100421050,10.74481181,2655.0,2654.8,10.03268213]
[1750100421246,10.74481181,2655.0,2654.9,10.03362021]
[1750100422271,21.53041181,2655.6,2655.2,3.76612537]
[1750100422503,0.81701883,2655.5,2655.2,3.76612537]
[1750100423005,10.74481181,2655.3,2655.0,3.76640027]
[1750100423455,10.74481181,2655.3,2655.1,10.03033483]
[1750100424556,0.8236,2655.8,2655.2,0.7535]
[1750100424758,0.8236,2655.8,2655.6,3.76560961]
[1750100424950,0.8236,2655.8,2655.5,10.02768654]
[1750100425172,0.8236,2655.8,2655.6,3.76561717]
[1750100425405,0.8236,2655.8,2655.5,10.02765685]
[1750100425756,0.7648,2655.5,2654.9,1.661]
[1750100425991,10.74481181,2655.2,2655.1,3.76627279]
[1750100426300,11.50961181,2655.5,2655.1,3.76633648]
[1750100426508,10.74481181,2655.5,2655.3,3.76599365]
[1750100426692,10.74481181,2655.5,2655.3,10.03099365]
[1750100427272,10.7662,2655.7,2655.3,6.265]
[1750100427672,10.74481181,2655.8,2655.6,3.76555801]
[1750100428015,10.74481181,2655.8,2655.6,10.03055801]
[1750100428512,0.8285,2655.9,2655.6,6.265]
[1750100428811,11.57331181,2656.1,2655.8,3.76534377]
[1750100429115,11.57331181,2656.1,2655.7,3.7654265]
[1750100429116,10.0,2656.0,2655.7,3.7654265]
[1750100429290,10.0,2656.0,2655.6,10.03059124]
[1750100429477,10.0,2656.0,2655.7,3.76537785]
[1750100430106,10.74481181,2655.8,2655.6,3.76555166]
[1750100430325,10.74481181,2655.8,2655.7,6.264]
[1750100430541,10.74481181,2655.8,2655.7,10.02948555]
[1750100430814,10.74481181,2655.8,2654.5,10.0]
[1750100431021,0.7621,2655.7,2655.3,3.7660528]
[1750100431181,0.7621,2655.7,2655.4,6.264]
[1750100431372,0.7621,2655.7,2655.5,3.76575766]
[1750100431925,0.8169,2655.9,2655.6,3.76558592]
[1750100432120,20.74481181,2656.0,2655.4,6.264]
[1750100432325,20.74481181,2656.0,2655.5,0.7802]
[1750100432526,0.8238,2656.5,2655.6,0.03765265]
[1750100432727,0.8238,2656.5,2655.7,6.263]
[1750100432934,10.74481181,2656.0,2655.8,10.029284]
[1750100433140,10.74481181,2656.0,2655.8,6.264]
[1750100433433,14.50994626,2656.0,2655.9,6.264]
[1750100433587,10.74481181,2656.0,2655.3,0.7683]
[1750100433788,10.74481181,2655.6,2655.4,6.264]
[1750100433987,10.74481181,2655.6,2655.4,10.02989802]
[1750100434187,10.74481181,2655.6,2655.5,3.76576915]
[1750100434686,10.74481181,2655.6,2655.4,10.02983346]
[1750100434892,0.7579,2655.7,2655.5,3.76575589]
[1750100435129,10.0,2655.9,2655.5,4.53405589]
[1750100435552,16.78417973,2655.9,2655.4,3.76582302]
[1750100435826,16.78417973,2655.9,2655.5,10.02775473]
[1750100436332,13.01896446,2655.9,2655.5,10.02775473]
[1750100436731,0.90133238,2655.9,2655.6,0.7504]
[1750100436939,10.0,2655.9,2655.5,10.02765493]
[1750100437118,10.74481181,2655.8,2655.4,3.76583416]
[1750100437305,12.06270142,2655.8,2655.6,6.268]
[1750100438001,12.06270142,2655.8,2655.4,3.76586012]
[1750100438346,3.91299201,2656.6,2655.6,0.7504]
[1750100438493,0.754,2656.5,2655.7,0.0376509]
[1750100438696,10.74481181,2656.6,2655.7,0.0376509]
[1750100438697,10.74481181,2656.6,2656.0,3.764928]
[1750100438942,10.74481181,2656.6,2656.2,3.76470634]
[1750100439135,10.0,2656.5,2656.2,3.76470634]
[1750100439305,0.91165627,2656.7,2656.3,3.76462291]
[1750100439512,0.91165627,2656.7,2656.4,3.76447228]
[1750100439825,10.15765627,2656.7,2656.5,3.76430963]
[1750100440154,10.15765627,2656.7,2656.4,3.76442636]
[1750100440300,3.76441513,2656.5,2656.0,3.76497049]
[1750100440617,12.60987727,2656.6,2655.8,10.04929766]
[1750100440618,0.7592,2656.2,2655.8,10.04929766]
[1750100440830,4.52399454,2656.2,2655.8,6.284]
[1750100441028,0.7592,2656.2,2655.8,10.04930762]
[1750100441648,4.52399501,2656.2,2655.8,10.04930762]
[1750100441799,0.7592,2656.2,2655.8,10.04930762]
[1750100442137,0.7592,2656.2,2655.9,3.76520077]
[1750100443441,0.7592,2656.2,2655.8,3.76526945]
[1750100444243,10.74481181,2656.1,2655.8,6.278]
[1750100444646,10.74481181,2656.1,2655.5,1.661]
[1750100444852,10.74481181,2656.1,2655.8,6.275]
[1750100445142,10.74481181,2656.1,2655.7,3.76540974]
[1750100447641,10.74481181,2656.1,2655.8,3.76533614]
[1750100447841,12.56202927,2656.1,2655.8,3.76533614]
[1750100448337,12.56202927,2656.1,2655.7,3.7654087]
[1750100448543,16.32695115,2656.1,2655.7,3.7654087]
[1750100448841,12.56202927,2656.1,2655.7,3.7654087]
[1750100449836,10.74481181,2655.8,2655.5,5.42670463]
[1750100450036,0.7697,2655.9,2655.6,10.03361835]
[1750100450542,0.55,2655.6,2654.8,0.8088]
[1750100450755,0.55,2655.6,2654.9,10.04162021]
[1750100450756,10.74481181,2655.2,2654.9,10.04162021]
[1750100451037,10.74481181,2655.4,2654.9,10.04162021]
[1750100451237,10.74481181,2655.4,2655.0,3.76644437]
[1750100451661,14.51075252,2655.4,2654.9,10.04157087]
[1750100451804,11.56571181,2655.1,2654.7,5.42780921]
[1750100452010,11.56571181,2655.1,2654.8,6.273]
[1750100452212,11.56571181,2655.1,2654.9,6.274]
[1750100452529,15.33211452,2655.1,2654.9,6.274]
[1750100452730,13.47555014,2655.1,2654.7,1.661]
[1750100452931,10.0,2655.0,2654.7,7.934]
[1750100453118,18.14329578,2655.1,2654.8,3.76668117]
[1750100453119,0.8209,2655.1,2654.8,3.76668117]
[1750100454609,11.56571181,2655.1,2654.7,7.934]
[1750100454805,15.33215149,2655.1,2654.8,6.27]
[1750100455061,12.66467006,2655.1,2654.8,6.27]
[1750100455235,0.55,2655.0,2654.8,6.27]
[1750100455428,4.31649013,2655.0,2654.8,6.27]
[1750100455621,0.55,2655.0,2654.8,6.27]
[1750100456939,4.31652224,2655.0,2654.8,6.27]
[1750100457143,3.76662021,2654.9,2654.5,1.661]
[1750100457317,3.76662021,2654.9,2654.6,6.269]
[1750100457518,4.55782669,2654.7,2654.2,3.76748106]
[1750100457861,4.55782669,2654.7,2654.1,1.681]
[1750100457862,0.7908,2654.7,2654.3,6.266]
[1750100458039,0.7908,2654.7,2654.3,3.7674264]
[1750100458240,4.99622047,2654.7,2654.3,6.266]
[1750100458563,1.22927591,2654.7,2654.3,6.266]
[1750100459049,4.99622243,2654.7,2654.3,6.266]
[1750100459246,1.22927591,2654.7,2654.3,10.03340237]
[1750100459453,1.22927591,2654.7,2654.3,6.266]
[1750100459749,4.99618581,2654.7,2654.3,6.266]
[1750100460355,10.74481181,2654.5,2654.1,0.02]
[1750100460514,0.7895,2654.4,2654.1,0.02]
[1750100461340,4.55683086,2654.4,2654.1,0.02]
[1750100461535,14.5124254,2654.2,2654.1,0.02]
[1750100461846,25.3288254,2654.2,2654.1,0.02]
[1750100462055,58.78846537,2654.2,2654.1,0.02]
[1750100463055,28.78846537,2654.2,2654.1,0.02]
[1750100464531,10.8164,2654.2,2654.1,0.02]
[1750100464727,25.8788254,2654.2,2654.1,0.02]
[1750100465169,22.11121181,2654.2,2654.1,0.02]
[1750100465464,10.8164,2654.2,2654.1,0.02]
[1750100465866,10.0,2654.2,2654.1,3.78775554]
[1750100466083,0.7662,2654.5,2654.1,3.78775554]
[1750100466282,10.7662,2654.5,2654.2,6.265]
[1750100466447,10.7662,2654.5,2654.1,3.78775554]
[1750100466448,10.7662,2654.5,2654.3,6.271]
[1750100466772,10.7662,2654.5,2654.1,3.78775554]
[1750100466957,0.7662,2654.5,2654.3,6.27]
[1750100467334,10.7662,2654.5,2654.3,6.27]
[1750100467528,0.7662,2654.5,2654.3,6.27]
[1750100467771,10.7662,2654.5,2654.3,6.27]
[1750100468085,0.7662,2654.5,2654.2,3.76760243]
[1750100468381,0.7662,2654.5,2654.3,6.269]
[1750100469333,10.0,2654.6,2654.3,6.269]
[1750100469668,1.23487591,2654.7,2654.3,10.03643272]
[1750100469871,0.7964,2654.7,2654.3,10.03641199]
[1750100470237,0.55,2654.8,2654.3,6.269]
[1750100470552,3.76711072,2654.6,2654.1,3.78766815]
[1750100470750,3.76711072,2654.6,2654.2,6.264]
[1750100470970,10.0,2654.6,2654.3,3.76745352]
[1750100471169,0.7733,2655.3,2654.3,0.79547327]
[1750100471588,10.7733,2655.3,2654.8,3.76668902]
[1750100471883,16.69123778,2655.3,2654.9,10.03460943]
[1750100472068,12.92511118,2655.3,2654.9,10.03460943]
[1750100472281,30.0,2655.9,2655.0,3.76640217]
[1750100472443,40.55,2655.5,2654.9,6.268]
[1750100472644,14.31588839,2655.5,2655.0,3.76640204]
[1750100472844,20.74481181,2655.4,2654.9,6.268]
[1750100473049,20.74481181,2655.4,2655.0,3.766391]
[1750100473261,10.0,2655.3,2655.0,3.766391]
[1750100473756,10.0,2655.3,2654.9,10.0345604]
[1750100473940,10.74481181,2655.4,2655.0,3.76647564]
[1750100474148,0.7751,2655.6,2655.0,0.03766331]
[1750100474355,0.7751,2655.6,2655.3,3.76597643]
[1750100474603,3.76542606,2655.8,2655.4,6.264]
[1750100474879,3.76563166,2655.6,2655.4,6.264]
[1750100475059,10.0,2655.5,2655.4,6.264]
[1750100475378,10.0,2655.6,2655.4,6.264]
[1750100475810,13.76566812,2655.6,2655.4,6.264]
[1750100476011,3.76606827,2655.3,2655.2,6.263]
[1750100476210,24.51086461,2655.3,2655.2,6.263]
[1750100476505,3.76621063,2655.2,2655.1,6.263]
[1750100477170,24.51092467,2655.3,2655.1,6.263]
[1750100477372,3.76619463,2655.2,2655.1,6.263]
[1750100477764,11.3249,2655.1,2654.8,1.659]
[1750100477968,20.74481181,2655.0,2654.9,6.263]
[1750100478203,10.0,2655.0,2654.9,6.263]
[1750100478428,30.0,2655.9,2655.0,0.7965]
[1750100478631,3.76474451,2656.3,2655.8,3.76532124]
[1750100478908,0.2251992,2656.2,2655.8,10.05532124]
[1750100479070,10.2251992,2656.2,2655.8,6.29]
[1750100479275,2.0970011,2656.1,2655.8,6.29]
[1750100479469,10.0,2656.0,2655.8,6.29]
[1750100481714,20.74481181,2656.0,2655.4,0.802]
[1750100481927,10.74481181,2655.7,2655.5,6.283]
[1750100482683,10.74481181,2655.7,2655.5,3.76575028]
[1750100482923,10.74481181,2655.7,2655.6,6.284]
[1750100483120,14.51029736,2655.7,2655.3,1.658]
[1750100483323,13.76569963,2655.6,2655.4,6.282]
[1750100483902,13.76569963,2655.6,2655.5,6.281]
[1750100484291,10.0,2655.6,2655.5,6.281]
[1750100484492,14.58254366,2655.6,2655.5,6.281]
[1750100484791,10.0,2655.4,2655.1,1.658]
[1750100484990,20.74481181,2655.4,2655.2,6.28]
[1750100485736,24.51073058,2655.4,2655.2,6.28]
[1750100486042,24.51077778,2655.4,2655.3,6.278]
[1750100486242,24.51077778,2655.4,2655.3,6.277]
[1750100486546,23.95583196,2655.4,2655.1,3.76633124]
[1750100486711,23.95583196,2655.4,2655.3,6.277]
[1750100486905,23.95583196,2655.4,2655.3,6.276]
[1750100487621,10.0,2655.4,2655.3,6.276]
[1750100488743,20.74481181,2655.4,2654.8,0.8181]
[1750100488944,14.51079228,2655.4,2655.0,3.76645323]
[1750100489145,10.0,2655.3,2654.9,11.69650469]
[1750100489354,10.0,2655.3,2655.0,3.76639445]
[1750100489536,0.8169,2655.6,2654.9,7.93]
[1750100489740,10.0,2655.7,2655.3,3.76597794]
[1750100489955,0.48400056,2655.6,2655.3,10.03697794]
[1750100490250,10.0,2655.7,2655.4,3.76589322]
[1750100490659,10.0,2655.7,2655.3,10.0369851]
[1750100492448,10.0,2655.7,2655.4,3.76590845]
[1750100492659,13.76549203,2655.7,2655.3,10.03698737]
[1750100493220,10.0,2655.7,2655.3,10.03698737]
[1750100493418,12.90797556,2655.7,2655.4,3.765869]
[1750100493719,12.90797556,2655.7,2655.3,10.03696805]
[1750100494843,16.67346258,2655.7,2655.3,10.03696805]
[1750100495157,16.67346258,2655.7,2655.3,6.271]
[1750100495329,12.90797556,2655.7,2655.3,10.03703438]
[1750100496668,1.04691958,2655.6,2655.3,10.03703438]
[1750100496818,1.04691958,2655.6,2655.3,6.271]
[1750100497018,4.81262209,2655.6,2655.3,6.271]
[1750100497327,4.81262209,2655.6,2655.4,6.257]
[1750100497328,1.04691958,2655.6,2655.4,6.257]
[1750100497542,1.77204646,2655.5,2655.4,6.257]
[1750100498663,3.76549315,2655.7,2655.4,6.257]
[1750100498664,10.0,2655.7,2655.4,6.257]
[1750100500237,0.55,2655.8,2655.4,6.257]
[1750100500471,0.9009758,2655.9,2655.4,10.02290506]
[1750100500674,3.76529451,2655.9,2655.4,10.02290506]
[1750100500879,10.0,2655.7,2655.4,10.02290506]
[1750100501286,0.9009758,2655.8,2655.4,10.02290506]
[1750100501483,10.0,2655.7,2655.4,6.257]
[1750100501781,10.0,2655.7,2655.5,6.253]
[1750100503566,3.76548577,2655.7,2655.5,6.253]
[1750100504649,3.7657883,2655.5,2655.3,1.66]
[1750100504887,15.49397257,2655.6,2655.4,6.253]
[1750100505181,15.49397257,2655.6,2655.5,6.251]
[1750100505560,11.7282758,2655.6,2655.5,6.251]
[1750100505965,18.54277266,2655.6,2655.5,6.251]
[1750100506162,10.0,2655.4,2655.0,0.8235]
[1750100506368,10.0,2655.4,2655.1,11.67633266]
[1750100506689,10.74481181,2655.4,2655.0,1.66]
[1750100506906,20.74481181,2655.1,2654.6,0.8006]
[1750100507052,10.0,2655.0,2654.7,7.909]
[1750100507494,13.76656901,2655.0,2654.7,7.909]
[1750100507667,3.76664926,2654.9,2654.6,0.8006]
[1750100507864,3.76664926,2654.9,2654.6,1.66]
[1750100508069,3.76664926,2654.9,2654.7,6.249]
[1750100508387,3.76664926,2654.9,2654.6,1.66]
[1750100508388,10.0,2654.8,2654.6,1.66]
[1750100508552,10.0,2654.8,2654.7,6.249]
[1750100509090,14.66888252,2655.0,2654.7,6.249]
[1750100509308,10.90232502,2655.0,2654.7,6.249]
[1750100509462,10.0,2655.0,2654.7,6.249]
[1750100509956,10.0,2655.0,2654.8,6.247]
[1750100510888,13.76648087,2655.0,2654.8,6.247]
[1750100511090,3.7666747,2654.9,2654.5,1.66]
[1750100511291,10.0,2654.8,2654.6,6.245]
[1750100511683,15.98491311,2655.0,2654.6,10.01203859]
[1750100511885,15.08291422,2655.0,2654.6,10.01203859]
[1750100512796,15.08291422,2655.0,2654.6,6.245]
[1750100512999,15.98488768,2655.0,2654.6,6.245]
[1750100513497,15.98488768,2655.0,2654.6,10.01203748]
[1750100513797,11.31636343,2655.0,2654.6,10.01203748]
[1750100514500,12.21814723,2655.0,2654.6,10.01203748]
[1750100514803,0.9017838,2655.1,2654.7,0.7935]
[1750100514978,0.8118,2655.8,2655.0,0.7935]
[1750100515171,3.76572934,2655.6,2655.1,11.67232907]
[1750100515602,3.76579223,2655.5,2655.1,11.67232907]
[1750100515822,10.0,2655.5,2655.1,11.67232907]
[1750100516025,0.90148837,2655.6,2655.2,3.76619463]
[1750100516322,0.90148837,2655.7,2655.3,3.76602935]
[1750100516513,4.57723872,2655.8,2655.4,6.244]
[1750100516685,10.0,2655.7,2655.4,6.244]
[1750100516887,4.66660366,2656.0,2655.5,3.76571839]
[1750100516888,1.45148837,2655.9,2655.5,3.76571839]
[1750100517089,10.55,2655.9,2655.5,3.76571839]
[1750100517288,5.43040366,2656.0,2655.5,3.76571839]
[1750100517490,4.52891529,2656.0,2655.5,3.76571839]
[1750100517787,4.52891529,2656.0,2655.4,7.0694]
[1750100517788,13.76520621,2655.9,2655.4,10.8352357]
[1750100518118,0.55,2655.9,2655.5,3.76576515]
[1750100518323,10.55,2655.9,2655.5,3.76576515]
[1750100518688,10.55,2655.9,2655.4,7.0694]
[1750100519029,10.55,2655.9,2655.5,3.76576864]
[1750100519212,2.69407449,2655.8,2655.5,3.76576864]
[1750100520024,2.69407449,2655.8,2655.4,10.83526623]
[1750100520025,10.0,2655.7,2655.4,10.83526623]
[1750100520229,10.0,2655.7,2655.4,1.66]
[1750100520435,20.74481181,2655.7,2655.3,3.76599034]
[1750100520601,23.52024272,2655.7,2655.0,0.77]
[1750100520813,10.7737,2655.5,2655.1,3.76629038]
[1750100521018,1.67493196,2655.5,2655.1,10.00829038]
[1750100522766,0.7737,2655.5,2655.1,10.00829038]
[1750100522919,6.66858554,2655.5,2655.1,6.242]
[1750100523125,3.80402847,2655.5,2655.1,6.242]
[1750100523626,3.80402847,2655.5,2655.1,10.00831043]
[1750100523945,3.80402847,2655.5,2655.2,3.76617937]
[1750100524604,3.80402847,2655.5,2655.1,6.242]
[1750100524808,3.80402847,2655.5,2655.1,10.0082539]
[1750100525918,3.80402847,2655.5,2655.2,3.76618461]
[1750100526245,10.0,2655.6,2655.4,3.76589779]
[1750100526447,10.0,2655.6,2655.5,6.235]
[1750100526816,10.0,2655.6,2655.5,6.237]
[1750100527725,13.76563246,2655.6,2655.0,4.53641544]
[1750100527933,14.66686506,2655.6,2655.1,7.881]
[1750100528127,10.0,2655.4,2655.1,1.644]
[1750100528313,10.0,2655.4,2655.2,6.235]
[1750100528941,10.0,2655.4,2655.0,0.77]
[1750100529139,10.74481181,2655.1,2654.8,4.57616742]
[1750100529453,13.76654712,2655.0,2654.9,6.234]
[1750100529857,14.66806658,2655.0,2654.9,6.234]
[1750100530015,10.90151946,2655.0,2654.9,6.234]
[1750100530214,10.0,2655.0,2654.9,6.234]
[1750100531022,14.66793358,2655.0,2654.7,1.644]
[1750100531224,14.66795216,2655.0,2654.8,6.237]
[1750100531421,3.76662021,2654.9,2654.8,6.237]
[1750100531618,6.8295555,2655.0,2654.8,6.234]
[1750100531818,10.0,2654.9,2654.8,6.234]
[1750100532557,13.76662348,2654.9,2654.7,7.878]
[1750100532719,10.0,2654.9,2654.7,7.878]
[1750100533419,10.55,2654.9,2654.7,1.644]
[1750100533738,10.55,2654.9,2654.8,6.232]
[1750100534433,14.31662021,2654.9,2654.8,6.232]
[1750100535029,13.76676209,2654.8,2654.7,1.644]
[1750100535233,21.29481181,2654.8,2654.7,6.232]
[1750100535732,13.76690398,2654.7,2654.6,6.232]